bitfinex-derivatives/quotes_ETHF0:USTF0_20250426
["timestamp","ask_amount","ask_price","bid_price","bid_amount"]
[1745653709952,2.73332,1801.2,1801.1,2.79956]
[1745653710655,2.73332,1801.2,1801.1,1.6896]
[1745653712153,3.55442,1801.2,1801.1,1.6896]
[1745653713555,1.10996,1801.1,1801.0,1.46018082]
[1745653713758,5.96546,1801.1,1801.0,0.35021082]
[1745653717451,5.96546,1801.1,1801.0,1.46023082]
[1745653717954,5.96546,1801.1,1801.0,3.15813082]
[1745653718759,2.75766,1801.1,1801.0,3.15813082]
[1745653719158,1.6477,1801.1,1801.0,3.15813082]
[1745653719747,0.01,1801.2,1801.1,1.10996]
[1745653719946,0.01,1801.2,1801.1,3.35396]
[1745653720154,1.10984,1801.3,1801.2,1.1099]
[1745653720452,1.10984,1801.3,1801.2,3.6461]
[1745653721266,1.10984,1801.3,1801.2,8.9541]
[1745653721864,1.6479,1801.4,1801.3,1.10984]
[1745653722159,1.6479,1801.4,1801.3,2.78944]
[1745653723259,1.6479,1801.4,1801.3,8.09744]
[1745653724160,2.75768,1801.4,1801.3,8.09744]
[1745653724664,2.75768,1801.4,1801.3,6.9876]
[1745653725661,2.75768,1801.4,1801.3,8.09744]
[1745653727065,1.6479,1801.4,1801.3,8.09744]
[1745653728466,2.75768,1801.4,1801.3,8.09744]
[1745653729165,1.6479,1801.4,1801.3,8.09744]
[1745653730566,0.01,1801.4,1801.3,8.09744]
[1745653731460,0.01,1801.4,1801.3,11.30524]
[1745653735363,4.0234,1801.7,1801.6,1.10965]
[1745653735866,0.8156,1801.7,1801.6,1.10965]
[1745653736172,3.2078,1801.9,1801.5,10.61945]
[1745653736476,3.2078,1801.9,1801.8,1.10953]
[1745653737070,3.2078,1801.9,1801.8,6.41753]
[1745653737267,3.2078,1802.1,1801.8,3.617]
[1745653737570,3.2078,1802.1,1802.0,1.10941]
[1745653738069,3.2078,1802.1,1802.0,6.41741]
[1745653740963,3.2078,1802.1,1802.0,8.11831]
[1745653741168,1.6554,1802.3,1802.2,1.10928]
[1745653741469,2.85065,1802.5,1802.0,9.78239]
[1745653741470,1.7415,1802.5,1802.4,1.10916]
[1745653742270,1.7415,1802.5,1802.4,6.41716]
[1745653743072,2.8506,1802.5,1802.4,6.41716]
[1745653743572,1.7415,1802.5,1802.4,6.41716]
[1745653745070,2.8506,1802.5,1802.4,6.41716]
[1745653745373,1.7415,1802.5,1802.4,6.41716]
[1745653745875,6.0584,1802.5,1802.4,5.308]
[1745653746074,2.8506,1802.5,1802.4,5.308]
[1745653747370,11.0584,1802.5,1802.4,5.308]
[1745653747571,1.10941,1802.0,1801.9,3.607]
[1745653747767,1.10945,1802.0,1801.8,1.10952]
[1745653747966,3.2078,1802.2,1801.8,1.10952]
[1745653747967,3.285,1801.9,1801.8,1.10952]
[1745653748168,4.39447,1801.9,1801.8,5.308]
[1745653748865,3.285,1801.9,1801.8,6.41753]
[1745653749977,4.39447,1801.9,1801.8,5.308]
[1745653750678,3.285,1801.9,1801.8,6.41753]
[1745653750878,4.39447,1801.9,1801.8,6.41753]
[1745653751875,3.285,1801.9,1801.8,6.41753]
[1745653752071,3.285,1801.9,1801.8,8.09003]
[1745653752573,3.285,1801.9,1801.8,8.93703]
[1745653753475,3.285,1801.9,1801.8,12.54403]
[1745653753979,2.4974,1801.9,1801.8,12.54403]
[1745653754183,4.31712,1802.2,1802.1,1.10935]
[1745653754387,5.8081,1802.2,1802.1,1.10935]
[1745653755479,6.6148,1802.2,1802.1,1.10935]
[1745653756681,6.6148,1802.2,1802.1,2.75865]
[1745653756982,1.10911,1802.5,1802.4,1.10916]
[1745653757169,4.47801,1802.5,1802.4,1.10916]
[1745653757574,3.3689,1802.5,1802.4,1.10916]
[1745653758073,3.3689,1802.5,1802.4,6.41716]
[1745653761089,4.478,1802.5,1802.4,6.41716]
[1745653761587,3.3689,1802.5,1802.4,6.41716]
[1745653765188,4.478,1802.5,1802.4,5.308]
[1745653765783,4.478,1802.5,1802.4,6.41716]
[1745653766384,4.478,1802.5,1802.4,5.308]
[1745653767490,4.478,1802.5,1802.4,6.41716]
[1745653767888,9.478,1802.5,1802.4,5.308]
[1745653768191,9.478,1802.5,1802.4,1.22149022]
[1745653768490,1.10936,1802.1,1801.8,4.7155]
[1745653768691,0.8639,1802.0,1801.8,4.7155]
[1745653768987,2.5536,1802.0,1801.8,4.7155]
[1745653769188,2.5536,1802.0,1801.8,10.0235]
[1745653769380,1.6897,1801.9,1801.8,10.0235]
[1745653769991,1.6897,1801.9,1801.8,11.638]
[1745653770789,0.8639,1802.0,1801.9,1.10947]
[1745653770988,9.0778,1802.6,1801.9,4.8223]
[1745653771193,3.4234,1802.4,1802.3,1.10922]
[1745653772094,4.53257,1802.4,1802.3,5.308]
[1745653778495,4.53257,1802.4,1802.3,6.41722]
[1745653778996,4.53257,1802.4,1802.3,8.15612]
[1745653779200,4.53257,1802.4,1802.3,7.0469]
[1745653779403,4.53257,1802.4,1802.3,5.308]
[1745653780694,4.53257,1802.4,1802.3,6.41722]
[1745653782494,4.53256,1802.4,1802.3,8.09712]
[1745653782699,4.53256,1802.4,1802.3,6.41722]
[1745653784109,3.4234,1802.4,1802.3,6.41722]
[1745653784296,2.5536,1802.4,1802.3,8.04712]
[1745653784497,2.5536,1802.4,1802.3,8.91072]
[1745653787307,3.66276,1802.4,1802.3,6.41722]
[1745653787603,6.87056,1802.4,1802.3,5.308]
[1745653793098,3.66276,1802.4,1802.3,5.308]
[1745653793606,6.87056,1802.4,1802.3,5.308]
[1745653793903,3.2078,1802.4,1802.3,5.308]
[1745653794095,0.43355943,1802.8,1802.3,5.308]
[1745653794096,3.2078,1802.8,1802.5,2.77276]
[1745653794301,0.8741,1802.9,1802.8,1.10887]
[1745653794500,6.97859,1803.4,1802.7,3.2078]
[1745653794501,5.87,1803.4,1802.7,3.2078]
[1745653794801,0.8289,1803.6,1803.0,2.77199]
[1745653795100,0.8289,1803.6,1803.3,1.10858]
[1745653795305,0.8289,1803.6,1803.4,1.10854]
[1745653795900,1.6197,1803.5,1803.4,1.10854]
[1745653796201,1.6197,1803.5,1803.4,6.41654]
[1745653797004,4.8275,1803.5,1803.4,6.41654]
[1745653797204,1.6197,1803.5,1803.4,6.41654]
[1745653801009,3.2078,1803.7,1803.4,5.308]
[1745653801205,3.2078,1803.7,1803.6,1.10842]
[1745653801403,2.464,1804.1,1804.0,1.10818]
[1745653801808,1.6706,1804.1,1804.0,1.10818]
[1745653802199,3.2078,1804.2,1804.0,5.308]
[1745653802506,3.61462,1804.1,1804.0,5.30523043]
[1745653803007,8.61462,1804.1,1804.0,5.30523043]
[1745653803206,2.5065,1804.1,1804.0,6.41341043]
[1745653804214,2.76903,1805.0,1804.0,6.41341043]
[1745653804215,4.9004,1805.2,1804.6,2.76947]
[1745653804401,4.9004,1805.2,1804.9,1.10762]
[1745653804402,1.6926,1805.0,1804.9,1.10762]
[1745653804607,1.6926,1805.2,1805.1,1.1075]
[1745653804902,0.8139,1806.0,1805.9,1.10701]
[1745653805102,3.2078,1806.0,1805.9,5.308]
[1745653805311,6.6638,1806.0,1805.9,5.308]
[1745653805609,9.8716,1806.0,1805.9,5.308]
[1745653806205,9.8716,1806.0,1805.6,3.608]
[1745653806514,9.8716,1806.0,1805.5,1.10725]
[1745653806515,3.2078,1805.8,1805.5,1.10725]
[1745653806704,1.6638,1805.7,1805.6,1.10719]
[1745653809610,1.6638,1805.7,1805.6,2.80679]
[1745653810009,3.2078,1806.2,1805.7,2.76784]
[1745653810210,4.0157,1806.7,1806.6,1.10658]
[1745653810415,3.2078,1807.1,1807.0,1.10634]
[1745653810614,4.8371,1807.5,1806.9,3.605]
[1745653810807,4.8371,1807.5,1807.4,1.10609]
[1745653811007,4.8371,1807.5,1806.9,3.605]
[1745653811307,3.2078,1807.0,1806.5,3.605]
[1745653811527,3.2078,1807.0,1806.4,3.605]
[1745653811711,1.6992,1806.9,1806.8,1.10646]
[1745653812112,7.0072,1806.9,1806.8,1.10646]
[1745653812917,3.2078,1807.4,1807.3,1.10615]
[1745653813119,8.5158,1807.4,1807.3,1.10615]
[1745653813916,8.5158,1807.4,1807.0,3.2078]
[1745653814117,8.5158,1807.4,1807.3,1.10615]
[1745653815521,10.1292,1807.4,1807.3,1.10615]
[1745653815913,10.1292,1807.4,1807.2,1.10618]
[1745653816119,17.10534,1807.4,1807.0,1.10629]
[1745653816326,3.2078,1807.2,1807.0,1.10634]
[1745653816525,1.6134,1807.1,1807.0,1.10634]
[1745653817323,6.9214,1807.1,1807.0,1.10634]
[1745653818422,1.6134,1807.1,1807.0,1.10634]
[1745653818815,5.308,1807.3,1807.2,1.10621]
[1745653819326,3.2078,1807.5,1807.4,1.10609]
[1745653820124,8.5158,1807.5,1807.4,1.10609]
[1745653822125,3.2078,1807.5,1807.4,1.10609]
[1745653823125,8.5158,1807.5,1807.4,1.10609]
[1745653823924,8.5158,1807.5,1806.9,3.601]
[1745653824230,1.5745,1807.4,1807.2,1.10621]
[1745653824536,1.10615,1807.3,1807.2,1.10621]
[1745653824728,2.68063,1807.4,1807.2,1.10621]
[1745653825030,8.5158,1807.5,1807.4,1.10609]
[1745653825224,3.2078,1807.5,1807.4,1.10609]
[1745653825625,3.2078,1807.7,1807.6,1.10597]
[1745653826131,8.5158,1807.7,1807.6,1.10597]
[1745653826325,10.1105,1807.7,1807.6,1.10597]
[1745653826832,1.106,1807.6,1807.4,1.10607]
[1745653827035,1.5947,1807.5,1807.4,1.10609]
[1745653827824,3.2078,1808.4,1807.4,8.2078]
[1745653828026,1.5947,1808.3,1808.2,1.10555]
[1745653828232,6.9027,1808.3,1808.2,1.10555]
[1745653828435,6.9027,1808.3,1808.2,1.7419]
[1745653828737,6.9027,1808.3,1808.2,2.8475]
[1745653829030,8.00824,1808.3,1808.2,1.7419]
[1745653829236,6.9027,1808.3,1808.1,1.10561]
[1745653829536,1.1056,1808.2,1808.0,6.58779]
[1745653829738,1.5752,1808.1,1808.0,6.58779]
[1745653830032,1.5752,1808.1,1808.0,4.90273]
[1745653830234,2.68086,1808.1,1808.0,3.797]
[1745653830424,1.10573,1808.0,1807.9,3.2078]
[1745653830625,2.68093,1808.0,1807.9,3.2078]
[1745653831323,7.98893,1808.0,1807.9,3.2078]
[1745653831526,10.091,1808.0,1807.7,3.796]
[1745653831726,1.10585,1807.8,1807.7,3.796]
[1745653832134,0.8414,1807.9,1807.7,3.796]
[1745653832437,8.04755,1807.8,1807.7,3.796]
[1745653832636,6.9417,1807.8,1807.7,3.796]
[1745653832836,6.9417,1807.8,1807.7,4.90191]
[1745653833035,8.04755,1807.8,1807.7,3.796]
[1745653833432,1.10591,1807.7,1807.5,3.2078]
[1745653833736,1.6337,1807.6,1807.5,4.31382]
[1745653834237,6.9417,1807.6,1807.5,3.2078]
[1745653834437,6.9417,1807.6,1807.5,4.31383]
[1745653834835,6.9417,1807.6,1807.5,5.91633]
[1745653837239,1.6337,1807.6,1807.5,5.91633]
[1745653839137,8.04767,1807.6,1807.5,3.2078]
[1745653839342,1.10603,1807.5,1807.4,3.796]
[1745653839532,7.4785,1807.5,1807.1,7.0038]
[1745653839737,7.4785,1807.5,1807.1,9.76945]
[1745653840034,7.4785,1807.5,1807.4,1.10609]
[1745653840237,7.4785,1807.5,1807.2,1.607]
[1745653840547,1.10621,1807.2,1807.1,3.796]
[1745653840738,1.10619,1807.3,1807.1,4.90226]
[1745653840939,1.6085,1807.2,1807.1,4.90226]
[1745653841142,1.6085,1807.2,1807.1,6.50926]
[1745653843745,0.802,1807.4,1807.3,1.10615]
[1745653843945,7.4562,1807.5,1807.4,1.10609]
[1745653844142,7.4562,1807.5,1807.4,2.70989]
[1745653844352,0.8155,1807.7,1807.6,1.10597]
[1745653845149,6.1235,1807.7,1807.5,4.3138]
[1745653845343,1.573,1807.6,1807.5,4.3138]
[1745653849250,1.573,1807.6,1807.2,1.10616]
[1745653849251,1.10609,1807.4,1807.2,1.10616]
[1745653849452,1.6277,1807.3,1807.2,1.10616]
[1745653850251,6.9357,1807.3,1807.2,1.10616]
[1745653853357,8.04185,1807.3,1807.1,7.0038]
[1745653853555,6.9357,1807.3,1807.2,1.10621]
[1745653856759,8.04185,1807.3,1807.2,1.10621]
[1745653856951,8.04185,1807.3,1807.1,8.11003]
[1745653857451,8.04185,1807.3,1807.2,1.10621]
[1745653857760,6.9357,1807.3,1807.2,1.10621]
[1745653858059,6.9357,1807.3,1807.2,2.75851]
[1745653862458,6.9357,1807.3,1807.2,1.10621]
[1745653862846,7.7966,1807.3,1807.1,7.0038]
[1745653863056,7.7966,1807.3,1806.7,4.44868]
[1745653863057,2.7657,1807.1,1806.6,4.86352]
[1745653863256,1.1065,1806.8,1806.6,1.10655]
[1745653863561,2.5733,1806.7,1806.3,8.0715]
[1745653863762,3.67984,1806.7,1806.5,1.10661]
[1745653864257,7.8813,1806.7,1806.6,1.10658]
[1745653864760,7.8813,1806.7,1806.4,1.10666]
[1745653864761,1.10658,1806.6,1806.4,1.10666]
[1745653864953,1.7124,1806.5,1806.4,1.10666]
[1745653865154,7.0204,1806.5,1806.4,1.10666]
[1745653865554,5.308,1806.5,1806.4,1.10666]
[1745653865761,5.308,1806.5,1806.4,2.75556]
[1745653866455,6.41464,1806.5,1806.3,8.07151]
[1745653866653,1.6886,1806.4,1806.3,8.07151]
[1745653867359,6.9966,1806.4,1806.3,8.07151]
[1745653867752,6.9966,1806.4,1806.3,6.9648]
[1745653868066,6.9966,1806.4,1806.3,4.86377]
[1745653871568,5.308,1806.4,1806.3,9.86377]
[1745653871764,1.10624,1807.2,1806.5,2.7666]
[1745653871955,2.4455,1807.1,1806.9,1.10638]
[1745653872153,3.55181,1807.1,1806.9,1.10638]
[1745653872361,1.10634,1807.0,1806.8,1.1064]
[1745653872562,1.6031,1806.9,1806.8,1.1064]
[1745653873263,6.9111,1806.9,1806.8,1.1064]
[1745653874059,8.0175,1806.9,1806.8,1.1064]
[1745653874266,8.0175,1806.9,1806.7,1.10648]
[1745653875263,1.10646,1806.8,1806.7,1.10648]
[1745653875453,1.5996,1806.8,1806.7,1.10648]
[1745653876164,6.9076,1806.8,1806.7,1.10648]
[1745653877567,6.9076,1806.8,1806.7,2.72678]
[1745653877860,1.10652,1806.7,1806.6,3.758]
[1745653878061,1.7348,1806.7,1806.6,4.86458]
[1745653878267,7.9057,1806.7,1806.6,4.86458]
[1745653878964,9.01222,1806.7,1806.6,3.758]
[1745653879157,9.84712,1806.7,1806.6,3.758]
[1745653879361,1.10677,1806.3,1806.2,6.9658]
[1745653879565,1.10677,1806.3,1806.2,3.758]
[1745653879865,1.10664,1806.5,1806.3,1.10673]
[1745653880066,1.1067,1806.4,1806.3,1.10673]
[1745653880268,2.84149,1806.5,1806.3,1.10673]
[1745653880661,2.84149,1806.5,1806.4,1.1067]
[1745653880662,1.7348,1806.5,1806.4,1.1067]
[1745653881268,7.0428,1806.5,1806.4,1.1067]
[1745653882466,7.0428,1806.5,1806.3,1.7054]
[1745653882665,7.0428,1806.5,1806.4,1.1067]
[1745653882867,8.14944,1806.5,1806.4,1.1067]
[1745653883569,7.0428,1806.5,1806.4,1.1067]
[1745653884467,5.308,1806.5,1806.4,1.1067]
[1745653884769,5.308,1806.5,1806.4,10.1181]
[1745653885358,5.308,1806.5,1806.4,5.1181]
[1745653886167,5.308,1806.5,1806.4,4.3145]
[1745653888571,1.1067,1806.4,1806.3,1.10672]
[1745653888772,2.8326,1806.4,1806.3,1.10672]
[1745653888973,2.8326,1806.4,1806.2,8.07258]
[1745653889269,8.1406,1806.4,1806.2,8.07258]
[1745653890172,1.10677,1806.3,1806.2,8.07263]
[1745653890374,2.82587,1806.3,1806.2,6.9658]
[1745653890570,2.82587,1806.3,1806.2,8.07263]
[1745653890770,3.61817,1806.3,1806.2,8.07263]
[1745653891171,8.92617,1806.3,1806.2,8.07263]
[1745653893782,8.92617,1806.3,1806.2,6.9658]
[1745653895279,8.92617,1806.3,1805.9,3.748]
[1745653895280,1.107,1806.0,1805.9,3.748]
[1745653895475,1.6531,1806.2,1805.9,4.85499]
[1745653895679,1.10695,1806.0,1805.9,3.748]
[1745653895887,1.10695,1806.0,1805.9,4.85501]
[1745653896089,6.41495,1806.0,1805.9,4.85501]
[1745653896283,8.07425,1806.0,1805.9,4.85501]
[1745653896885,8.07425,1806.0,1805.9,3.748]
[1745653897288,8.07425,1806.0,1805.9,4.85501]
[1745653897589,8.07425,1806.0,1805.9,3.748]
[1745653899192,6.9673,1806.0,1805.9,4.85501]
[1745653900186,8.07425,1806.0,1805.9,4.85501]
[1745653900588,8.07425,1806.0,1805.9,3.748]
[1745653900786,8.07425,1806.0,1805.9,4.85501]
[1745653902794,8.07425,1806.0,1805.8,1.10704]
[1745653902995,2.5411,1805.9,1805.8,1.10704]
[1745653903197,7.8491,1805.9,1805.8,1.10704]
[1745653903393,7.8491,1805.9,1805.6,8.7031]
[1745653903592,1.7058,1805.8,1805.6,8.7031]
[1745653903797,2.81289,1805.8,1805.7,1.10711]
[1745653904183,8.12089,1805.8,1805.7,1.10711]
[1745653905592,8.12089,1805.8,1805.6,8.7031]
[1745653905794,1.6458,1805.7,1805.6,8.06395]
[1745653906697,5.308,1805.8,1805.7,1.10713]
[1745653906895,5.308,1805.8,1805.7,2.83333]
[1745653907095,5.308,1805.8,1805.7,3.69153]
[1745653910300,1.55,1805.8,1805.7,8.69153]
[1745653914999,1.55,1805.8,1805.7,3.69153]
[1745653920712,0.8621,1806.2,1805.8,2.76762]
[1745653920916,0.8621,1806.2,1806.1,4.31469]
[1745653921215,1.7234,1806.4,1806.3,1.10677]
[1745653921921,0.00425713,1806.7,1806.3,4.7882]
[1745653922106,1.72765713,1806.7,1806.6,1.10658]
[1745653922914,1.72765713,1806.7,1806.5,8.0214]
[1745653923318,1.6534,1806.6,1806.5,4.8136]
[1745653923813,3.3201,1806.6,1806.5,4.8136]
[1745653924316,8.6281,1806.6,1806.5,4.8136]
[1745653927910,9.73468,1806.6,1806.5,3.707]
[1745653928312,14.73468,1806.6,1806.5,3.707]
[1745653930919,9.73468,1806.6,1806.5,3.707]
[1745653934322,16.39461,1806.6,1806.0,6.9138]
[1745653934514,1.10679,1806.3,1806.0,6.9138]
[1745653934716,3.3444,1806.2,1806.1,1.10689]
[1745653935218,8.6524,1806.2,1806.1,1.10689]
[1745653936425,9.75923,1806.2,1806.0,8.02071]
[1745653936723,2.75559,1806.1,1806.0,3.706]
[1745653937029,2.75559,1806.1,1806.0,4.81295]
[1745653937218,8.06359,1806.1,1806.0,4.81295]
[1745653937420,8.06359,1806.1,1806.0,3.706]
[1745653940525,18.80175,1806.1,1805.7,3.707]
[1745653940720,1.10707,1805.8,1805.7,3.707]
[1745653941224,6.41507,1805.8,1805.7,3.707]
[1745653942622,5.308,1805.8,1805.7,4.81413]
[1745653943026,8.6061,1805.8,1805.7,4.81413]
[1745653944321,9.71317,1805.8,1805.7,3.707]
[1745653944715,8.6061,1805.8,1805.7,4.81413]
[1745653945423,9.71317,1805.8,1805.7,3.707]
[1745653945628,8.6061,1805.8,1805.4,3.707]
[1745653945928,1.10719,1805.6,1805.4,4.81427]
[1745653946227,1.6362,1805.5,1805.4,4.81427]
[1745653946417,2.74346,1805.5,1805.4,3.707]
[1745653946620,1.6362,1805.5,1805.4,4.81432]
[1745653947222,6.9442,1805.5,1805.4,4.81432]
[1745653947429,6.9442,1805.5,1805.4,6.45362]
[1745653957630,5.308,1805.5,1805.4,6.45362]
[1745653957839,4.15563,1805.5,1805.4,12.29902]
[1745653959430,4.15829248,1805.5,1805.4,12.29902]
[1745653959830,4.15829248,1805.5,1805.4,7.29902]
[1745653962740,4.15829248,1805.5,1805.4,10.50682]
[1745653967143,4.15829248,1805.5,1805.4,4.31512]
[1745653967341,4.15829248,1805.5,1805.4,7.99912]
[1745653968237,5.73849248,1805.5,1805.4,7.99912]
[1745653977645,5.73849248,1805.5,1805.4,4.79132]
[1745653977845,5.73849248,1805.5,1805.4,7.99912]
[1745653978849,5.73849248,1805.5,1805.4,4.79132]
[1745653979040,5.73849248,1805.5,1805.4,7.99912]
[1745653981945,5.73849248,1805.5,1805.4,3.2078]
[1745653982149,5.73849248,1805.5,1805.4,7.96212]
[1745653983845,5.73849248,1805.5,1805.4,6.8548]
[1745653984249,5.73849248,1805.5,1805.4,7.96212]
[1745653986136,5.73849248,1805.5,1805.4,6.8548]
[1745653986137,6.84575248,1805.5,1805.4,6.8548]
[1745653986341,5.73849248,1805.5,1805.4,6.8548]
[1745653986941,5.73849248,1805.5,1805.4,7.96212]
[1745653987647,5.73849248,1805.5,1805.4,6.8548]
[1745653987851,5.73849248,1805.5,1805.4,7.96212]
[1745653988538,5.73849248,1805.5,1805.4,6.8548]
[1745653989353,6.84575248,1805.5,1805.4,6.8548]
[1745653990048,6.84575248,1805.5,1805.4,3.647]
[1745653991345,6.84575248,1805.5,1805.3,1.10737]
[1745653991546,2.3798,1805.4,1805.3,1.10737]
[1745653992250,7.6878,1805.4,1805.2,4.31521]
[1745653992452,1.5876,1805.3,1805.2,4.31521]
[1745653992653,2.695,1805.3,1805.1,3.647]
[1745653992845,1.90864,1805.2,1805.1,3.647]
[1745653993046,2.3888,1805.2,1805.1,3.647]
[1745653993342,7.6968,1805.2,1805.1,3.647]
[1745653994350,7.6968,1805.2,1805.1,4.7545]
[1745653995752,7.6968,1805.2,1805.1,3.647]
[1745653996753,7.6968,1805.2,1805.1,4.7545]
[1745654002865,8.80424,1805.2,1805.1,3.647]
[1745654003357,1.1075,1805.1,1805.0,4.31535]
[1745654003559,2.4954,1805.1,1805.0,4.31535]
[1745654004052,2.4954,1805.1,1805.0,1.10755]
[1745654004259,8.9109,1805.1,1805.0,1.10755]
[1745654004460,1.10756,1805.0,1804.9,3.2078]
[1745654004659,1.6665,1805.0,1804.9,4.31542]
[1745654005251,6.9745,1805.0,1804.9,4.31542]
[1745654009653,5.308,1805.0,1804.9,4.31542]
[1745654009855,5.308,1805.0,1804.9,6.83732]
[1745654019163,5.308,1805.0,1804.9,6.02862]
[1745654020570,6.9101,1805.0,1804.9,6.02862]
[1745654020768,6.9101,1805.0,1804.9,4.31542]
[1745654021170,7.7646,1805.0,1804.9,4.31542]
[1745654021971,8.87216,1805.0,1804.9,3.2078]
[1745654022469,7.7646,1805.0,1804.9,3.2078]
[1745654022670,8.87216,1805.0,1804.9,3.2078]
[1745654023261,7.7646,1805.0,1804.9,4.31542]
[1745654023568,7.7646,1805.0,1804.9,3.2078]
[1745654027373,8.87216,1805.0,1804.9,3.2078]
[1745654028375,1.10762,1804.9,1804.8,3.648]
[1745654028671,2.85362,1804.9,1804.8,4.75569]
[1745654028872,1.746,1804.9,1804.8,4.75569]
[1745654029072,7.054,1804.9,1804.8,4.75569]
[1745654034176,7.054,1804.9,1804.8,6.46589]
[1745654038778,7.9216,1804.9,1804.8,6.46589]
[1745654040171,7.9216,1804.9,1804.8,4.75569]
[1745654040381,7.9216,1804.9,1804.8,3.648]
[1745654040578,7.9216,1804.9,1804.8,4.75569]
[1745654043277,7.9216,1804.9,1804.8,3.648]
[1745654043480,7.9216,1804.9,1804.8,4.75569]
[1745654047183,7.9216,1804.9,1804.8,3.648]
[1745654048790,7.9216,1804.9,1804.8,4.75569]
[1745654055588,7.9216,1804.9,1804.8,3.648]
[1745654056671,7.9216,1804.9,1804.8,4.75569]
[1745654057087,7.9216,1804.9,1804.8,1.10769]
[1745654059688,9.02923,1804.9,1804.7,7.92851]
[1745654059889,1.7173,1804.8,1804.7,7.92851]
[1745654061388,7.0253,1804.8,1804.7,7.92851]
[1745654066684,10.2331,1804.8,1804.4,3.613]
[1745654066991,1.108,1804.3,1804.1,4.935]
[1745654067194,1.7018,1804.2,1804.1,6.04308]
[1745654068187,7.0098,1804.2,1804.1,6.04308]
[1745654068393,7.8044,1804.2,1804.1,6.04308]
[1745654069789,7.8044,1804.2,1804.1,4.31588]
[1745654070388,7.8044,1804.2,1804.1,5.89758]
[1745654070994,5.308,1804.2,1804.1,5.89758]
[1745654076298,5.308,1804.2,1804.1,4.7895]
[1745654076795,6.9749,1804.2,1804.1,5.89762]
[1745654076996,8.5688,1804.2,1804.1,5.89762]
[1745654077904,8.5688,1804.2,1804.1,4.31592]
[1745654078100,8.5688,1804.2,1804.1,3.2078]
[1745654082198,9.67685,1804.2,1804.1,3.2078]
[1745654082601,8.5688,1804.2,1804.1,3.2078]
[1745654083605,8.5688,1804.2,1804.1,4.31592]
[1745654087103,8.5688,1804.2,1804.1,1.10812]
[1745654087305,8.5688,1804.2,1804.1,4.31592]
[1745654092913,8.5688,1804.2,1804.1,3.2078]
[1745654093402,9.67685,1804.2,1804.1,3.2078]
[1745654093607,8.5688,1804.2,1804.1,4.31592]
[1745654095408,8.5688,1804.2,1804.1,3.2078]
[1745654095605,8.5688,1804.2,1804.1,4.31592]
[1745654096012,9.67685,1804.2,1804.1,3.2078]
[1745654098108,15.54685,1804.2,1804.1,3.2078]
[1745654098309,2.7703,1804.1,1803.6,3.614]
[1745654098514,3.2078,1804.0,1803.6,3.614]
[1745654098714,1.92839,1803.9,1803.6,4.72239]
[1745654098914,4.52659,1803.9,1803.6,4.72239]
[1745654099111,9.83459,1803.9,1803.6,4.72239]
[1745654099317,1.747,1803.8,1803.7,1.10835]
[1745654100220,1.6713,1803.9,1803.8,1.1083]
[1745654100418,0.8201,1803.9,1803.8,1.1083]
[1745654100719,0.8201,1803.9,1803.8,2.8511]
[1745654100915,2.5066,1803.9,1803.8,2.8511]
[1745654101319,7.8146,1803.9,1803.8,2.8511]
[1745654103013,5.308,1803.9,1803.8,2.8511]
[1745654103318,5.308,1803.9,1803.8,3.7141]
[1745654104619,5.308,1803.9,1803.8,1.1083]
[1745654104918,5.308,1803.9,1803.7,1.10833]
[1745654105120,5.308,1803.9,1803.6,3.614]
[1745654105121,3.3116,1803.8,1803.6,6.44918]
[1745654105318,1.5984,1803.7,1803.6,6.44918]
[1745654106218,6.9064,1803.7,1803.6,6.44918]
[1745654106418,5.308,1803.7,1803.6,6.44918]
[1745654113520,2.1002,1803.7,1803.6,14.65698]
[1745654114519,0.0147,1803.8,1803.7,1.10836]
[1745654114721,0.0147,1803.8,1803.7,4.44606]
[1745654115225,5.3227,1803.8,1803.7,4.44606]
[1745654117229,5.3227,1803.8,1803.7,7.65386]
[1745654126443,0.8483,1804.2,1803.8,2.7707]
[1745654126644,0.8483,1804.2,1804.0,3.2078]
[1745654126940,2.591,1804.2,1804.0,3.2078]
[1745654127142,7.899,1804.2,1804.1,2.74212]
[1745654127932,0.8279,1804.7,1804.6,1.10781]
[1745654128136,0.8279,1804.7,1804.6,4.72081]
[1745654129243,6.1359,1804.7,1804.6,4.72081]
[1745654145854,6.1359,1804.7,1804.6,3.613]
[1745654146042,6.1359,1804.7,1804.6,4.72081]
[1745654148157,7.8453,1804.7,1804.6,4.72081]
[1745654149157,7.8453,1804.7,1804.6,3.613]
[1745654149456,7.8453,1804.7,1804.6,4.72081]
[1745654154654,7.8453,1804.7,1804.6,3.613]
[1745654154853,1.10789,1804.5,1804.4,3.611]
[1745654155259,6.41589,1804.5,1804.4,3.611]
[1745654155446,8.01129,1804.5,1804.4,3.611]
[1745654156053,8.01129,1804.5,1804.4,12.92673]
[1745654156054,5.308,1804.5,1804.4,12.92673]
[1745654156456,5.308,1804.5,1804.4,7.92673]
[1745654156959,5.308,1804.5,1804.4,10.31563]
[1745654160363,5.308,1804.5,1804.4,5.2005]
[1745654160663,5.308,1804.5,1804.4,3.611]
[1745654161159,14.71007,1804.5,1804.4,3.611]